[Event "33rd ECCC Open 2017"]
[Site "Antalya"]
[Date "2017.10.09"]
[Round "2"]
[White "Lodici, Lorenzo"]
[Black "Milovic, Jovan"]
[Result "1-0"]
[ECO "A43"]
[WhiteElo "2407"]
[BlackElo "2301"]
[Annotator "NA"]
[PlyCount "99"]
[EventType "team-tourn"]
[EventCountry "TUR"]
[SourceTitle "playchess.com"]
[Source "ChessBase"]
[SourceQuality "1"]
[WhiteTeam "Augusta Perusia"]
[BlackTeam "Elektroprivreda"]
[TimeControl "40/5400+30:1800+30"]

1. d4 {[%emt 0:00:30]} c5 {[%emt 0:02:00]} 2. d5 {[%emt 0:00:30]} e6 {[%emt 0:00:00]} 3. Nc3 {[%emt 0:00:30]} exd5 {[%emt 0:01:00]} 4. Nxd5 {[%emt 0:00:30]} Nf6 {[%emt 0:00:30]} 5. Nxf6+ {[%emt 0:01:30]} Qxf6 {[%emt 0:00:30]} 6. e4 {[%emt 0:04:30]} Qe6 {[%emt 0:06:30]} 7. f3 {[%emt 0:03:30]} Nc6 {[%emt 0:01:30]} 8. Nh3 {[%emt 0:03:30]} Bd6 {[%emt 0:02:30]} 9. Bf4 {[%emt 0:01:30]} Be5 {[%emt 0:00:30]} 10. c3 {[%emt 0:02:30]} O-O {[%emt 0:01:30]} 11. Qd2 {[%emt 0:16:30]} d5 {[%emt 0:01:30]} 12. Ng5 {[%emt 0:07:30]} (12. Qxd5 $11 {remains equal.} Qxd5 13. exd5 Bxh3 14. Bxe5 Nxe5 15. gxh3) 12... Qe7 {[%emt 0:02:30]} 13. O-O-O {[%emt 0:04:30]} dxe4 {[%emt 0:07:30]} (13... h6 $17 14. Bxe5 Nxe5) 14. Bb5 {[%emt 0:12:30]} Qc7 {[%emt 0:07:30]} 15. Bxe5 {[%emt 0:00:30]} Nxe5 {[%emt 0:00:00]} 16. Nxe4 {[%emt 0:01:30]} a6 {[%emt 0:07:00]} 17. Be2 {[%emt 0:05:30]} Be6 {[%emt 0:05:30]} 18. Qd6 {[%emt 0:01:30]} Qxd6 {[%emt 0:02:30]} 19. Nxd6 {[%emt 0:00:00]} Bxa2 {[%emt 0:07:30]} 20. Nxb7 {[%emt 0:00:00]} c4 {[%emt 0:07:30]} 21. f4 {[%emt 0:05:30]} Ng6 {[%emt 0:00:30]} 22. g3 {[%emt 0:00:30]} Rfe8 {[%emt 0:02:30]} 23. Rd2 {[%emt 0:03:30]} Re7 {[%emt 0:00:00]} 24. Nd6 {[%emt 0:03:30]} Rc7 {[%emt 0:00:00]} 25. Rd4 {[%emt 0:00:32]} Ne7 {[%emt 0:00:30]} 26. Bxc4 {[%emt 0:01:55]} Bxc4 $18 {[%emt 0:01:30]} 27. Rxc4 {[%emt 0:00:12]} Rd7 {[%emt 0:00:30]} 28. Rd1 {[%emt 0:00:35]} Rad8 {[%emt 0:00:30]} 29. Rcd4 {[%emt 0:00:12]} Nc6 {[%emt 0:00:00]} 30. R4d2 {[%emt 0:00:41]} Rc7 {[%emt 0:05:00]} 31. Nc4 {[%emt 0:01:51]} Rxd2 {[%emt 0:00:30]} 32. Rxd2 {[%emt 0:00:04]} g6 {[%emt 0:00:30]} 33. Rd6 {[%emt 0:00:58]} a5 {[%emt 0:01:30]} 34. Rd5 {[%emt 0:01:48]} Ne7 {[%emt 0:02:30]} 35. Rd8+ {[%emt 0:00:30]} Kg7 {[%emt 0:00:00]} 36. Nxa5 {[%emt 0:00:27]} h5 {[%emt 0:00:00]} 37. Kc2 {[%emt 0:00:10]} h4 {[%emt 0:00:30]} 38. b4 {[%emt 0:00:17]} h3 {[%emt 0:00:30]} 39. g4 {[%emt 0:01:15]} g5 {[%emt 0:00:00]} 40. fxg5 {[%emt 0:00:00]} Kg6 {[%emt 0:00:00]} 41. Kb3 {[%emt 0:08:03]} Kxg5 {[%emt 0:03:30]} 42. b5 {[%emt 0:02:30]} Ra7 {[%emt 0:00:30]} 43. Kb4 {[%emt 0:01:30]} Kxg4 {[%emt 0:00:30]} 44. b6 {[%emt 0:01:30]} Ra6 {[%emt 0:00:30]} 45. Rd4+ {[%emt 0:00:30]} Kf3 {[%emt 0:00:30]} 46. Kb5 {[%emt 0:00:30]} Ra8 {[%emt 0:00:30]} 47. b7 {[%emt 0:00:00]} Rh8 {[%emt 0:03:30]} 48. Rd7 {[%emt 0:03:00]} Ng6 {[%emt 0:06:30]} 49. Rxf7+ {[%emt 0:01:30]} Kg2 {[%emt 0:00:30]} 50. Rg7 {[%emt 0:00:00]} 1-0

[Event "33rd ECCC Open 2017"]
[Site "Antalya"]
[Date "2017.10.11"]
[Round "2"]
[White "Thorfinnsson, Bjorn"]
[Black "Abbas, Daniel"]
[Result "1-0"]
[ECO "E12"]
[WhiteElo "2398"]
[BlackElo "2329"]
[Annotator "ChessBase"]
[PlyCount "129"]
[EventType "team-tourn"]
[EventCountry "TUR"]
[WhiteTeam "Viking"]
[BlackTeam "3CS Oldham"]
[TimeControl "40/5400+30:1800+30"]

1. d4 {[%emt 0:00:30]} Nf6 {[%emt 0:01:00]} 2. c4 {[%emt 0:00:30]} e6 {[%emt 0:00:30]} 3. Nc3 {[%emt 0:00:00]} Bb4 {[%emt 0:00:30]} 4. Nf3 {[%emt 0:00:00]} b6 {[%emt 0:02:30]} 5. Bf4 {[%emt 0:00:30]} Bb7 {[%emt 0:01:30]} 6. e3 {[%emt 0:00:00]} O-O {[%emt 0:05:30]} 7. Bd3 {[%emt 0:00:00]} Ne4 {[%emt 0:04:30]} 8. O-O {[%emt 0:05:30]} Bxc3 {[%emt 0:02:30]} 9. bxc3 {[%emt 0:00:30]} d6 {[%emt 0:04:30]} 10. Ne1 {[%emt 0:04:30]} f5 {[%emt 0:05:30]} 11. f3 {[%emt 0:01:30]} Nf6 {[%emt 0:00:30]} 12. Bg3 {[%emt 0:13:30]} Qe7 {[%emt 0:07:30]} 13. Nc2 {[%emt 0:04:30]} Nh5 {[%emt 0:06:30]} 14. Bf2 {[%emt 0:04:30]} Nd7 {[%emt 0:03:30]} 15. e4 {[%emt 0:14:30]} f4 {[%emt 0:08:30]} 16. e5 {[%emt 0:03:30]} dxe5 {[%emt 0:02:30]} 17. Re1 {[%emt 0:01:30]} Qg5 {[%emt 0:06:30]} 18. Qe2 {[%emt 0:03:30]} Rf6 {[%emt 0:04:30]} 19. dxe5 {[%emt 0:17:30]} Rh6 {[%emt 0:02:30]} 20. Rad1 {[%emt 0:00:30]} Rf8 {[%emt 0:06:30]} 21. Bxh7+ {[%emt 0:09:16]} Rxh7 {[%emt 0:02:30] 4} 22. Rxd7 {[%emt 0:00:30]} Ng3 {[%emt 0:00:30] 1} 23. Bxg3 {[%emt 0:00:30]} fxg3 {[%emt 0:00:30] ]} 24. h3 {[%emt 0:00:00]} Bxf3 {[%emt 0:05:43]} 25. Qe3 {[%emt 0:01:15]} Qg6 {[%emt 0:01:48]} 26. Qd3 {[%emt 0:03:33]} Qxd3 {[%emt 0:07:48]} 27. Rxd3 {[%emt 0:00:05]} Bxg2 {[%emt 0:00:32]} 28. Kxg2 {[%emt 0:01:35]} Rf2+ {[%emt 0:00:24]} 29. Kxg3 {[%emt 0:00:30]} Rxc2 {[%emt 0:00:08]} 30. Rd8+ {[%emt 0:01:35]} Kf7 {[%emt 0:00:08]} 31. Re3 {[%emt 0:00:46]} Ke7 {[%emt 0:02:48]} 32. Red3 {[%emt 0:08:53]} Rxc3 {[%emt 0:03:20]} 33. R8d7+ {[%emt 0:00:30]} Ke8 {[%emt 0:00:30]} 34. Rd8+ {[%emt 0:00:00]} Ke7 {[%emt 0:00:06]} 35. R8d7+ {[%emt 0:00:15]} Ke8 {[%emt 0:00:00]} 36. Kg4 {[%emt 0:01:13]} Rxd3 {[%emt 0:02:30]} 37. Rxd3 {[%emt 0:00:03]} Ke7 {[%emt 0:01:39]} 38. Kg5 {[%emt 0:00:30]} Rh6 {[%emt 0:00:00]} 39. h4 {[%emt 0:00:22]} Ke8 {[%emt 0:00:49]} 40. Ra3 {[%emt 0:00:00] ]} a5 {[%emt 0:30:16]} 41. c5 {[%emt 0:01:09] 1} Kd7 {[%emt 0:00:00] 1} 42. cxb6 {[%emt 0:07:30] 1} cxb6 {[%emt 0:00:00] 1} 43. Rc3 {[%emt 0:00:30] 1} Rh8 {[%emt 0:00:00]} 44. h5 {[%emt 0:00:30]} a4 {[%emt 0:00:00]} 45. Rh3 {[%emt 0:04:30] 9} Re8 {[%emt 0:00:00]} 46. Kg6 {[%emt 0:02:23]} Re7 {[%emt 0:00:00]} 47. Rc3 {[%emt 0:00:22]} b5 {[%emt 0:00:00]} 48. Rc5 {[%emt 0:00:30]} b4 {[%emt 0:00:00]} 49. Rc4 {[%emt 0:01:15]} b3 {[%emt 0:00:07]} 50. Rxa4 {[%emt 0:00:30]} bxa2 {[%emt 0:00:30]} 51. Rxa2 {[%emt 0:00:00]} Kc6 {[%emt 0:00:18]} 52. Rf2 {[%emt 0:00:26]} Kd5 {[%emt 0:00:17]} 53. Rf7 {[%emt 0:00:30]} Re8 {[%emt 0:00:31]} 54. Kxg7 {[%emt 0:02:23]} Kxe5 {[%emt 0:00:10] [%clk 0:05.30]} 55. h6 {[%emt 0:01:03]} Kd4 {[%emt 0:01:08]} 56. Rf8 {[%emt 0:04:53]} Re7+ {[%emt 0:00:10]} 57. Kf6 {[%emt 0:01:53]} Rh7 {[%emt 0:00:30]} 58. Kg6 {[%emt 0:00:30]} Re7 {[%emt 0:00:00]} 59. h7 {[%emt 0:00:40]} Rxh7 {[%emt 0:00:22]} 60. Kxh7 {[%emt 0:00:30]} e5 {[%emt 0:00:30]} 61. Kg6 {[%emt 0:00:30]} e4 {[%emt 0:00:30]} 62. Kf5 {[%emt 0:00:00]} e3 {[%emt 0:00:00]} 63. Kf4 {[%emt 0:00:00]} e2 {[%emt 0:00:17]} 64. Re8 {[%emt 0:00:29]} Kd3 {[%emt 0:00:30]} 65. Kf3 {[%emt 0:00:00]} 1-0

[Event "33rd ECCC Open 2017"]
[Site "Antalya"]
[Date "2017.10.09"]
[Round "2"]
[White "Kjartansson, David"]
[Black "Asllani, Ibrahim"]
[Result "1-0"]
[ECO "B22"]
[WhiteElo "2386"]
[BlackElo "2072"]
[Annotator "NA"]
[PlyCount "63"]
[EventType "team-tourn"]
[EventCountry "TUR"]
[SourceTitle "playchess.com"]
[Source "ChessBase"]
[SourceQuality "1"]
[WhiteTeam "Fjolnir"]
[BlackTeam "Hasan Pristina"]
[TimeControl "40/5400+30:1800+30"]

1. e4 {[%emt 0:01:30]} c5 {[%emt 0:01:00]} 2. Nf3 {[%emt 0:00:00]} e6 {[%emt 0:00:30]} 3. c3 {[%emt 0:00:00]} Nf6 {[%emt 0:01:30]} 4. e5 {[%emt 0:01:30]} Nd5 {[%emt 0:00:30]} 5. Bc4 {[%emt 0:00:30]} Nb6 {[%emt 0:00:30]} 6. Bb3 {[%emt 0:00:00]} c4 {[%emt 0:00:30]} 7. Bc2 {[%emt 0:00:00]} d6 {[%emt 0:01:30] B22: Sicilian: 2 c3} 8. exd6 {[%emt 0:00:30]} Bxd6 {[%emt 0:00:30]} 9. O-O {[%emt 0:00:30]} Bd7 {[%emt 0:06:30]} 10. Qe2 {[%emt 0:02:30]} Nc6 {[%emt 0:12:30]} 11. b3 {[%emt 0:00:30]} cxb3 {[%emt 0:02:30]} 12. axb3 {[%emt 0:00:30]} g5 $146 {[%emt 0:07:30]} ({Predecessor:} 12... Qe7 13. Ba3 Nd5 14. Bxd6 Qxd6 15. Na3 {1-0 (43) Hracek,Z (2650)-Piket,J (2570) Nussloch 1996}) 13. d4 {[%emt 0:00:30]} h6 {[%emt 0:04:30]} 14. Na3 {[%emt 0:03:30]} Qf6 {[%emt 0:12:30]} (14... O-O $16 {is a better defense.} 15. Ne5 f5) 15. Nc4 {[%emt 0:04:30]} Nxc4 {[%emt 0:00:30]} 16. bxc4 {[%emt 0:00:00]} Ne7 {[%emt 0:03:30]} 17. Ne5 {[%emt 0:00:00]} Bxe5 {[%emt 0:01:30]} 18. dxe5 {[%emt 0:00:30]} Qg7 {[%emt 0:01:30]} 19. Ba3 {[%emt 0:00:30]} f5 {[%emt 0:06:30]} 20. exf6 {[%emt 0:01:30]} Qxf6 {[%emt 0:00:30]} 21. Rad1 {[%emt 0:06:30]} O-O-O {[%emt 0:03:30]} 22. Qe3 {[%emt 0:02:30]} Nc6 {[%emt 0:00:30]} 23. Bd6 {[%emt 0:01:30]} e5 {[%emt 0:05:30]} 24. c5 {[%emt 0:00:30]} h5 {[%emt 0:01:30]} 25. Be4 {[%emt 0:01:30]} Rde8 {[%emt 0:02:30]} 26. Ra1 {[%emt 0:00:30]} a6 {[%emt 0:01:30]} 27. Rfb1 {[%emt 0:00:30]} Re6 {[%emt 0:04:13]} 28. Qd3 $18 {[%emt 0:01:30]} Rh6 {[%emt 0:01:05]} 29. Rxb7 {[%emt 0:02:30]} Rxd6 {[%emt 0:00:30]} 30. cxd6 {[%emt 0:00:30]} Qxd6 {[%emt 0:02:17]} 31. Rxd7 {[%emt 0:01:30]} Kxd7 {[%emt 0:01:44]} 32. Bxc6+ {[%emt 0:00:30]} 1-0

[Event "33rd ECCC Open 2017"]
[Site "Antalya"]
[Date "2017.10.09"]
[Round "2"]
[White "Danchevski, Orce"]
[Black "Burcu, Cagatay"]
[Result "1-0"]
[ECO "E57"]
[WhiteElo "2367"]
[BlackElo "2283"]
[Annotator "NA"]
[PlyCount "49"]
[EventType "team-tourn"]
[EventCountry "TUR"]
[SourceTitle "playchess.com"]
[Source "ChessBase"]
[SourceQuality "1"]
[WhiteTeam "Asseco See"]
[BlackTeam "Besiktas"]
[TimeControl "40/5400+30:1800+30"]

1. c4 {[%emt 0:00:30]} c6 {[%emt 0:01:00]} 2. e4 {[%emt 0:00:30]} d5 {[%emt 0:00:30]} 3. exd5 {[%emt 0:00:30]} cxd5 {[%emt 0:00:30]} 4. d4 {[%emt 0:00:30]} Nf6 {[%emt 0:00:30]} 5. Nc3 {[%emt 0:00:30]} Nc6 {[%emt 0:00:30]} 6. Bg5 {[%emt 0:00:00]} e6 {[%emt 0:17:30]} 7. Nf3 {[%emt 0:00:00]} Bb4 {[%emt 0:00:30]} 8. Bd3 {[%emt 0:11:30]} dxc4 {[%emt 0:02:30]} 9. Bxc4 {[%emt 0:00:30]} O-O {[%emt 0:00:30]} 10. O-O {[%emt 0:00:30]} b6 {[%emt 0:09:30]} 11. a3 {[%emt 0:06:30]} Be7 {[%emt 0:04:30]} 12. Qd3 {[%emt 0:00:30]} Bb7 {[%emt 0:05:30]} 13. Rad1 {[%emt 0:00:30] LiveBook: 57 Games} Nh5 {[%emt 0:05:30]} 14. Bc1 {[%emt 0:03:30]} Qc8 {[%emt 0:09:30]} 15. Rfe1 {[%emt 0:06:30]} Rd8 $18 {[%emt 0:07:30]} (15... Bf6 $142) 16. Ba2 {[%emt 0:09:30]} Bf6 {[%emt 0:08:30]} 17. Qe3 {[%emt 0:13:30]} g6 {[%emt 0:04:39]} 18. d5 {[%emt 0:06:30]} exd5 {[%emt 0:00:49]} 19. Nxd5 {[%emt 0:00:30]} Bg7 {[%emt 0:04:48]} 20. Ne7+ {[%emt 0:04:30]} Nxe7 {[%emt 0:00:05]} 21. Qxe7 {[%emt 0:00:30]} Rxd1 {[%emt 0:07:31]} 22. Qxf7+ {[%emt 0:02:30]} Kh8 {[%emt 0:00:30]} 23. Rxd1 {[%emt 0:00:00]} Qc2 {[%emt 0:01:15]} 24. Re1 {[%emt 0:01:00]} Be4 {[%emt 0:01:59]} 25. Ng5 {[%emt 0:00:30]} 1-0

[Event "33rd ECCC Open 2017"]
[Site "Antalya"]
[Date "2017.10.11"]
[Round "2"]
[White "Ozturk, Kubra"]
[Black "Podlesnik, Bogdan"]
[Result "0-1"]
[ECO "A60"]
[WhiteElo "2364"]
[BlackElo "2372"]
[Annotator "ChessBase"]
[PlyCount "92"]
[EventType "team-tourn"]
[EventCountry "TUR"]
[WhiteTeam "Besiktas"]
[BlackTeam "Asseco See"]
[TimeControl "40/5400+30:1800+30"]

1. d4 {[%emt 0:00:30]} Nf6 {[%emt 0:01:00]} 2. c4 {[%emt 0:00:30]} e6 {[%emt 0:00:00]} 3. g3 {[%emt 0:00:30]} c5 {[%emt 0:00:00]} 4. d5 {[%emt 0:00:30]} exd5 {[%emt 0:00:30]} 5. cxd5 {[%emt 0:00:30]} b5 {[%emt 0:00:30]} 6. e4 {[%emt 0:00:00]} Nxe4 {[%emt 0:02:30]} 7. Bg2 {[%emt 0:00:00]} Qa5+ {[%emt 0:08:30]} 8. Nd2 {[%emt 0:10:30]} Nd6 {[%emt 0:00:30]} 9. Ngf3 {[%emt 0:01:30]} Be7 {[%emt 0:00:30]} 10. O-O {[%emt 0:01:30]} O-O {[%emt 0:00:00]} 11. Nb3 {[%emt 0:08:30]} Qb6 {[%emt 0:00:00]} 12. Re1 {[%emt 0:05:30]} Bf6 {[%emt 0:01:30]} 13. Be3 {[%emt 0:03:30]} Na6 {[%emt 0:02:30]} 14. Nxc5 {[%emt 0:12:30]} Nxc5 {[%emt 0:00:00]} 15. b4 {[%emt 0:00:30]} Ndb7 {[%emt 0:14:00]} 16. d6 {[%emt 0:15:30]} Bxa1 {[%emt 0:19:30]} 17. Qxa1 {[%emt 0:00:30]} Qa6 {[%emt 0:10:30]} 18. bxc5 {[%emt 0:00:30]} Nd8 {[%emt 0:00:30]} 19. Nd4 {[%emt 0:08:30]} Bb7 {[%emt 0:02:30]} 20. Nf5 {[%emt 0:00:30]} f6 {[%emt 0:01:30]} 21. Bf1 {[%emt 0:09:12]} Qa4 {[%emt 0:06:30]} 22. Qb1 {[%emt 0:04:12]} a6 {[%emt 0:01:30]} 23. Bd3 {[%emt 0:05:13]} Qg4 {[%emt 0:16:17]} 24. Nh4 {[%emt 0:01:02]} g6 {[%emt 0:01:41]} 25. f3 {[%emt 0:06:44]} Qh5 {[%emt 0:01:14]} 26. Be4 {[%emt 0:02:21]} Bxe4 {[%emt 0:00:50]} 27. Qxe4 {[%emt 0:00:16]} Nc6 {[%emt 0:01:25]} 28. Qd3 {[%emt 0:01:55]} Rae8 {[%emt 0:01:18]} 29. Rd1 {[%emt 0:00:15]} Re6 {[%emt 0:01:43]} 30. Bf2 {[%emt 0:00:25]} Rfe8 {[%emt 0:02:05]} 31. g4 {[%emt 0:00:35]} Qg5 {[%emt 0:00:25]} 32. Ng2 {[%emt 0:00:25]} Qe5 {[%emt 0:01:42]} 33. h4 {[%emt 0:00:57]} Qe2 {[%emt 0:00:40]} 34. Qb3 {[%emt 0:00:48]} Ne5 {[%emt 0:02:04]} 35. Nf4 {[%emt 0:00:12]} Qxf3 {[%emt 0:00:44]} 36. Qxf3 {[%emt 0:00:38]} Nxf3+ {[%emt 0:00:01]} 37. Kg2 {[%emt 0:00:05]} Ne5 {[%emt 0:00:52]} 38. Nxe6 {[%emt 0:00:22]} Rxe6 {[%emt 0:00:05]} 39. Kg3 {[%emt 0:00:52]} Kf7 {[%emt 0:00:34]} 40. g5 {[%emt 0:00:00]} f5 {[%emt 0:01:20]} 41. Rd2 {[%emt 0:04:01]} Nc6 {[%emt 0:01:30]} 42. Kf3 {[%emt 0:08:30]} Re4 {[%emt 0:00:30]} 43. Bg3 {[%emt 0:03:07]} Ke6 {[%emt 0:01:30]} 44. Bf2 {[%emt 0:00:47]} a5 {[%emt 0:00:30]} 45. Rb2 {[%emt 0:03:37]} b4 {[%emt 0:01:30]} 46. Rd2 {[%emt 0:00:03]} a4 {[%emt 0:00:30]} 0-1

[Event "33rd ECCC Open 2017"]
[Site "Antalya"]
[Date "2017.10.09"]
[Round "2"]
[White "Kristensen, Kaare Hove"]
[Black "Burstein, Roman"]
[Result "1-0"]
[ECO "A43"]
[WhiteElo "2331"]
[BlackElo "2322"]
[Annotator "NA"]
[PlyCount "69"]
[EventType "team-tourn"]
[EventCountry "TUR"]
[SourceTitle "playchess.com"]
[Source "ChessBase"]
[SourceQuality "1"]
[WhiteTeam "Nordkalotten"]
[BlackTeam "MAKABI"]
[TimeControl "40/5400+30:1800+30"]

1. d4 {[%emt 0:00:30]} Nf6 {[%emt 0:01:00]} 2. Nf3 {[%emt 0:00:00]} c5 {[%emt 0:00:30]} 3. d5 {[%emt 0:05:00]} g6 {[%emt 0:00:30]} 4. Nc3 {[%emt 0:01:30]} Bg7 {[%emt 0:01:30]} 5. e4 {[%emt 0:01:30]} d6 {[%emt 0:02:30]} 6. Be2 {[%emt 0:01:30]} O-O {[%emt 0:00:30]} 7. O-O {[%emt 0:00:00]} Na6 {[%emt 0:00:00]} 8. Re1 {[%emt 0:03:00]} Nc7 {[%emt 0:01:00]} 9. h3 {[%emt 0:08:30]} Rb8 {[%emt 0:04:30]} 10. a4 {[%emt 0:00:30]} b6 {[%emt 0:03:30] A43: Schmid Benoni} 11. Bf4 {[%emt 0:12:30]} a6 {[%emt 0:04:30]} 12. e5 {[%emt 0:06:30]} Nfe8 $1 {[%emt 0:01:30]} 13. Qd2 {[%emt 0:05:30]} b5 {[%emt 0:02:30] LiveBook: 4 Games} 14. axb5 {[%emt 0:04:30]} axb5 {[%emt 0:00:30]} 15. Rad1 {[%emt 0:07:30]} Bb7 {[%emt 0:07:30]} 16. Bxb5 $146 {[%emt 0:08:30]} ({Predecessor:} 16. Nxb5 Bxd5 17. Nc3 Bxf3 18. Bxf3 Ne6 19. b3 Nxf4 20. Qxf4 {1-0 (41) Langeweg,K (2400)-Da Cunha,M (2410) Wijk aan Zee 1984}) 16... Nxb5 {[%emt 0:01:30]} 17. Nxb5 {[%emt 0:00:30]} Ba6 {[%emt 0:05:30]} 18. Na7 {[%emt 0:08:30]} Rxb2 {[%emt 0:05:30]} 19. Nc6 {[%emt 0:00:30]} Qd7 {[%emt 0:06:30]} 20. exd6 {[%emt 0:07:40]} exd6 $18 {[%emt 0:00:30]} 21. Re7 {[%emt 0:00:58]} Qf5 {[%emt 0:03:30]} 22. Ra7 {[%emt 0:00:51]} Bf6 {[%emt 0:09:30]} 23. Rxa6 {[%emt 0:00:33]} Nc7 {[%emt 0:00:30]} 24. Ra7 {[%emt 0:01:10]} Nb5 {[%emt 0:00:30]} 25. Ne7+ {[%emt 0:02:29]} Bxe7 {[%emt 0:01:30]} 26. Rxe7 {[%emt 0:00:05]} Rxc2 {[%emt 0:00:30]} 27. Qd3 {[%emt 0:00:40]} Nc3 {[%emt 0:00:30]} 28. Qxf5 {[%emt 0:01:25]} gxf5 {[%emt 0:00:30]} 29. Rd2 {[%emt 0:01:48]} Rxd2 {[%emt 0:05:30]} 30. Bxd2 {[%emt 0:00:58]} Nxd5 {[%emt 0:00:30]} 31. Rd7 {[%emt 0:00:18]} Nf6 {[%emt 0:01:30]} 32. Rxd6 {[%emt 0:00:48]} Ne4 {[%emt 0:00:00]} 33. Rc6 {[%emt 0:01:22]} Rd8 {[%emt 0:02:00]} 34. Be3 {[%emt 0:00:30]} h5 {[%emt 0:00:30]} 35. Ng5 {[%emt 0:01:10]} 1-0

[Event "33rd ECCC Open 2017"]
[Site "Antalya"]
[Date "2017.10.09"]
[Round "2"]
[White "Gantner, Matthias"]
[Black "Civi, Anil"]
[Result "1-0"]
[ECO "C78"]
[WhiteElo "2324"]
[BlackElo "1385"]
[Annotator "NA"]
[PlyCount "63"]
[EventType "team-tourn"]
[EventCountry "TUR"]
[SourceTitle "playchess.com"]
[Source "ChessBase"]
[SourceQuality "1"]
[WhiteTeam "White Rose"]
[BlackTeam "Hatay"]
[TimeControl "40/5400+30:1800+30"]

1. e4 {[%emt 0:01:30]} e5 {[%emt 0:01:00]} 2. Nf3 {[%emt 0:00:30]} Nc6 {[%emt 0:00:30]} 3. Bb5 {[%emt 0:00:30]} a6 {[%emt 0:00:00]} 4. Ba4 {[%emt 0:00:30]} Nf6 {[%emt 0:00:00]} 5. O-O {[%emt 0:00:30]} Bc5 {[%emt 0:00:30]} 6. c3 {[%emt 0:08:30]} O-O {[%emt 0:03:30]} 7. d4 {[%emt 0:01:30]} exd4 {[%emt 0:00:30]} 8. cxd4 {[%emt 0:00:00]} Bb4 {[%emt 0:01:30] C78: Spanische Partie (Archangelsk- und Möller-Variante)} (8... Be7 9. Nc3 d6 10. Re1 Bg4 11. Be3 b5 12. Bc2 Nb4 13. Bb1 c5 14. d5 Nd7 15. a3 Qa5 16. Bd2 {1-0 (31) Kanarek,M (2453)-Warmowski,P (2040) Koszalin 2009}) 9. e5 {[%emt 0:08:00]} Nd5 {[%emt 0:01:30]} 10. a3 $146 {[%emt 0:07:30]} ({Vorgänger:} 10. Qd3 Be7 11. Qe4 Nb6 12. d5 Na7 13. Bc2 g6 14. Bh6 Re8 15. Nc3 d6 16. Rfe1 {1-0 (33) Degano,E (1647)-Bortolosso,P (1464) Udine 2008}) 10... Be7 {[%emt 0:05:30]} 11. Bb3 {[%emt 0:00:30]} Nb6 {[%emt 0:01:30]} 12. d5 {[%emt 0:01:30]} Na5 {[%emt 0:00:30]} 13. d6 {[%emt 0:16:30]} cxd6 {[%emt 0:01:30]} 14. exd6 {[%emt 0:00:30]} Bf6 $2 {[%emt 0:00:30]} ({Better is} 14... Bxd6 $14 15. Bxf7+ Rxf7 16. Qxd6 Rf6) 15. Nc3 {[%emt 0:01:30]} Re8 {[%emt 0:01:30]} 16. Bc2 {[%emt 0:07:30]} Nbc4 {[%emt 0:02:30]} 17. Qd3 {[%emt 0:00:30]} g6 {[%emt 0:00:30]} 18. b4 {[%emt 0:01:30]} Nxd6 {[%emt 0:00:30]} 19. bxa5 {[%emt 0:01:30]} Nb5 {[%emt 0:00:30]} 20. Nxb5 {[%emt 0:02:30]} Bxa1 {[%emt 0:01:30]} 21. Nd6 {[%emt 0:00:00]} Re6 {[%emt 0:00:30]} 22. Ng5 {[%emt 0:03:00]} Re7 {[%emt 0:02:30]} 23. Ngxf7 {[%emt 0:04:30]} Rxf7 {[%emt 0:02:30]} 24. Bb3 {[%emt 0:00:00]} Kf8 {[%emt 0:04:30]} 25. Nxf7 {[%emt 0:01:00]} Qc7 {[%emt 0:00:30]} 26. Bd2 {[%emt 0:01:30]} Be5 {[%emt 0:02:30]} 27. Nxe5 {[%emt 0:00:30]} Qxe5 {[%emt 0:00:30]} 28. Bb4+ {[%emt 0:00:30]} Ke8 {[%emt 0:00:30]} 29. Bd6 {[%emt 0:00:00]} Qf6 {[%emt 0:01:30]} 30. Qe4+ {[%emt 0:01:00]} Kd8 {[%emt 0:00:30]} 31. Rd1 {[%emt 0:01:30]} Qg7 {[%emt 0:05:30]} 32. Re1 {[%emt 0:00:30]} 1-0

[Event "33rd ECCC Open 2017"]
[Site "Antalya"]
[Date "2017.10.09"]
[Round "2"]
[White "Paltrinieri, Nicholas"]
[Black "Nikac, Predrag"]
[Result "0-1"]
[ECO "B15"]
[WhiteElo "2295"]
[BlackElo "2305"]
[Annotator "NA"]
[PlyCount "66"]
[EventType "team-tourn"]
[EventCountry "TUR"]
[SourceTitle "playchess.com"]
[Source "ChessBase"]
[SourceQuality "1"]
[WhiteTeam "Augusta Perusia"]
[BlackTeam "Elektroprivreda"]
[TimeControl "40/5400+30:1800+30"]

1. d4 {[%emt 0:00:30]} g6 {[%emt 0:01:00]} 2. e4 {[%emt 0:00:00]} c6 {[%emt 0:00:30]} 3. Nc3 {[%emt 0:02:00]} d5 {[%emt 0:00:30]} 4. Be2 {[%emt 0:09:30] B15: Caro-Kann: 3 Nc3: 3...g6 and 3...dxe4 4 Nxe4 Nf6 5 Nxf6+ exf6} (4. e5 Bg7 5. f4 h5 6. Nf3 Nh6 7. Be3 Qb6 8. Rb1 Bg4 9. Be2 Nd7 10. O-O Nf8 11. Na4 Qc7 12. Nc5 Nf5 13. Bf2 Bh6 14. Nh4 Bxf4 15. Bxg4 Ne3 {1-0 (52) Duda,J (2693)-Jobava,B (2713) Chartres 2017}) 4... dxe4 {[%emt 0:06:30]} 5. Nxe4 {[%emt 0:00:30]} Bg7 {[%emt 0:00:00]} 6. c3 {[%emt 0:03:30]} Nd7 {[%emt 0:03:00]} 7. Nf3 {[%emt 0:01:30]} Ngf6 {[%emt 0:00:30]} 8. Nxf6+ {[%emt 0:08:30]} Nxf6 {[%emt 0:01:30]} 9. h3 {[%emt 0:00:30]} O-O {[%emt 0:01:30]} 10. Bf4 {[%emt 0:01:30]} a5 $146 {[%emt 0:03:30]} ({Predecessor:} 10... Qb6 11. Qb3 Be6 12. Qxb6 axb6 13. a3 b5 14. O-O Nd5 {0-1 (62) Rovira Vila,J (2060)-Menac Comas,J (2077) Figueres 2016}) 11. O-O {[%emt 0:05:30]} a4 {[%emt 0:05:30]} 12. Bh2 {[%emt 0:08:30]} Qb6 {[%emt 0:07:30]} 13. Qd2 {[%emt 0:24:30]} Rd8 {[%emt 0:06:30]} 14. Ne5 {[%emt 0:00:00]} Be6 {[%emt 0:00:30]} 15. Bf3 {[%emt 0:01:00]} c5 {[%emt 0:02:30]} 16. dxc5 {[%emt 0:01:30]} Qxc5 {[%emt 0:03:30]} 17. Qe2 {[%emt 0:00:30]} Bd5 {[%emt 0:01:30]} 18. Rfd1 {[%emt 0:03:30]} (18. c4 $11 {hält das Gleichgewicht.} Bxf3 19. Qxf3) 18... a3 {[%emt 0:00:30]} 19. b3 $17 {[%emt 0:09:08]} ({White should play} 19. Bxd5 $15 Nxd5 20. c4 axb2 21. Qxb2) 19... Qxc3 {[%emt 0:01:30]} 20. Rac1 {[%emt 0:02:00]} Bxf3 {[%emt 0:15:30]} 21. Nxf3 {[%emt 0:00:04]} Qa5 {[%emt 0:09:30]} 22. Rxd8+ {[%emt 0:00:09]} Qxd8 {[%emt 0:00:30]} 23. Rc7 {[%emt 0:00:19]} Nd5 {[%emt 0:00:30]} 24. Rxb7 {[%emt 0:01:22]} Qc8 {[%emt 0:00:30]} 25. Rxe7 {[%emt 0:04:28]} Nxe7 {[%emt 0:00:30]} 26. Qxe7 {[%emt 0:00:03]} Qc1+ {[%emt 0:00:30]} 27. Ne1 {[%emt 0:02:18]} Bf8 {[%emt 0:06:30]} 28. Qe4 {[%emt 0:02:01]} Rd8 {[%emt 0:01:30]} 29. Bf4 {[%emt 0:00:12]} Qa1 {[%emt 0:01:30]} 30. Qe2 {[%emt 0:02:31]} Bb4 {[%emt 0:00:40]} 31. Bg5 {[%emt 0:01:29]} Rd5 {[%emt 0:02:02]} 32. Qe8+ {[%emt 0:05:05]} Kg7 {[%emt 0:00:38]} 33. Bf6+ {[%emt 0:00:10]} Qxf6 {[%emt 0:00:01]} 0-1